[Event "*** Titled Tuesday Blitz"]
[Site "Chess.com"]
[Date "2020.04.07"]
[Round "1"]
[White "patrisiii123"]
[Black "severomorskij"]
[Result "0-1"]
[WhiteElo "2438"]
[BlackElo "2834"]
[TimeControl "180+1"]
[EndTime "13:07:54 PDT"]
[Termination "severomorskij won by checkmate"]

1. e4 {[%clk 0:02:41]} 1... c5 {[%clk 0:02:59.2]} 2. Nf3 {[%clk 0:02:40.9]} 2...
Nc6 {[%clk 0:02:59]} 3. d4 {[%clk 0:02:41.3]} 3... cxd4 {[%clk 0:02:59.5]} 4.
Nxd4 {[%clk 0:02:42.2]} 4... Nf6 {[%clk 0:02:59.8]} 5. Nc3 {[%clk 0:02:37.1]}
5... e5 {[%clk 0:02:59.7]} 6. Ndb5 {[%clk 0:02:35.6]} 6... d6 {[%clk 0:02:59.5]}
7. Bg5 {[%clk 0:02:31.8]} 7... a6 {[%clk 0:02:57.1]} 8. Na3 {[%clk 0:02:31.2]}
8... b5 {[%clk 0:02:57.1]} 9. Nd5 {[%clk 0:02:31.4]} 9... Be7 {[%clk 0:02:57.1]}
10. Bxf6 {[%clk 0:02:29.7]} 10... Bxf6 {[%clk 0:02:57.2]} 11. c3 {[%clk
0:02:29.9]} 11... Bg5 {[%clk 0:02:52.4]} 12. Nc2 {[%clk 0:02:24.3]} 12... Ne7
{[%clk 0:02:52.1]} 13. Nce3 {[%clk 0:02:21.4]} 13... O-O {[%clk 0:02:35]} 14.
Be2 {[%clk 0:01:58.7]} 14... Bb7 {[%clk 0:02:27.3]} 15. O-O {[%clk 0:01:55.3]}
15... Bxe3 {[%clk 0:02:26.7]} 16. fxe3 {[%clk 0:01:46.9]} 16... Nxd5 {[%clk
0:02:08.4]} 17. exd5 {[%clk 0:01:47.8]} 17... Qb6 {[%clk 0:02:08.6]} 18. Qd3
{[%clk 0:01:45.1]} 18... f5 {[%clk 0:02:06.3]} 19. Kh1 {[%clk 0:01:38.4]} 19...
g6 {[%clk 0:02:01.4]} 20. e4 {[%clk 0:01:23.2]} 20... fxe4 {[%clk 0:01:47.7]}
21. Qxe4 {[%clk 0:01:24.1]} 21... Qc5 {[%clk 0:01:42.4]} 22. Bf3 {[%clk
0:01:12.2]} 22... Rf4 {[%clk 0:01:40.9]} 23. Qd3 {[%clk 0:01:09.8]} 23... Raf8
{[%clk 0:01:40.4]} 24. Rfe1 {[%clk 0:01:01.2]} 24... Rxf3 {[%clk 0:01:13.1]} 25.
gxf3 {[%clk 0:00:53.6]} 25... Bxd5 {[%clk 0:01:13]} 26. Rf1 {[%clk 0:00:48.7]}
26... Bc4 {[%clk 0:01:12.3]} 27. Qe4 {[%clk 0:00:42.9]} 27... Bxf1 {[%clk
0:01:11.6]} 28. Rxf1 {[%clk 0:00:43.8]} 28... Qc4 {[%clk 0:00:55.3]} 29. Qxc4+
{[%clk 0:00:43.3]} 29... bxc4 {[%clk 0:00:56.2]} 30. Kg2 {[%clk 0:00:43.6]}
30... Rb8 {[%clk 0:00:53.7]} 31. Rf2 {[%clk 0:00:43.9]} 31... Kf7 {[%clk
0:00:53.3]} 32. Rd2 {[%clk 0:00:44.2]} 32... Ke6 {[%clk 0:00:53.2]} 33. Kg3
{[%clk 0:00:44.7]} 33... d5 {[%clk 0:00:51]} 34. Kg4 {[%clk 0:00:42.4]} 34... a5
{[%clk 0:00:42]} 35. Kg5 {[%clk 0:00:42.7]} 35... Rf8 {[%clk 0:00:39.1]} 36. Kg4
{[%clk 0:00:39.4]} 36... h5+ {[%clk 0:00:36.1]} 37. Kg3 {[%clk 0:00:35.3]} 37...
g5 {[%clk 0:00:36.3]} 38. h3 {[%clk 0:00:33.7]} 38... a4 {[%clk 0:00:35.7]} 39.
Re2 {[%clk 0:00:33.2]} 39... Rf4 {[%clk 0:00:33.4]} 40. a3 {[%clk 0:00:28]}
40... Kf5 {[%clk 0:00:28.4]} 41. Kh2 {[%clk 0:00:26.5]} 41... Rxf3 {[%clk
0:00:27.3]} 42. Rd2 {[%clk 0:00:26.7]} 42... Ke4 {[%clk 0:00:24.4]} 43. Rg2
{[%clk 0:00:25.8]} 43... Kf4 {[%clk 0:00:18.6]} 44. Re2 {[%clk 0:00:25.8]} 44...
d4 {[%clk 0:00:17.3]} 45. cxd4 {[%clk 0:00:25.3]} 45... exd4 {[%clk 0:00:18.2]}
46. Rc2 {[%clk 0:00:26]} 46... c3 {[%clk 0:00:17.7]} 47. bxc3 {[%clk 0:00:25.4]}
47... dxc3 {[%clk 0:00:18.6]} 48. Rc1 {[%clk 0:00:25]} 48... g4 {[%clk
0:00:16.7]} 49. hxg4 {[%clk 0:00:23.8]} 49... hxg4 {[%clk 0:00:17.6]} 50. Kg2
{[%clk 0:00:24.7]} 50... g3 {[%clk 0:00:15.1]} 51. Kg1 {[%clk 0:00:22.9]} 51...
Rd3 {[%clk 0:00:12.3]} 52. Rc2 {[%clk 0:00:23.3]} 52... Rd1+ {[%clk 0:00:11.9]}
53. Kg2 {[%clk 0:00:21.5]} 53... Rd2+ {[%clk 0:00:12.8]} 54. Rxd2 {[%clk
0:00:21]} 54... cxd2 {[%clk 0:00:12.7]} 55. Kh3 {[%clk 0:00:18.8]} 55... d1=Q
{[%clk 0:00:12.6]} 56. Kg2 {[%clk 0:00:18.6]} 56... Qf3+ {[%clk 0:00:12.5]} 57.
Kg1 {[%clk 0:00:18.8]} 57... Qf2+ {[%clk 0:00:12.4]} 58. Kh1 {[%clk 0:00:19.7]}
58... Qf1# {[%clk 0:00:13.3]} 0-1

[Event "*** Titled Tuesday Blitz"]
[Site "Chess.com"]
[Date "2020.04.07"]
[Round "1"]
[White "nfds"]
[Black "Chessalary"]
[Result "1/2-1/2"]
[WhiteElo "2584"]
[BlackElo "2254"]
[TimeControl "180+1"]
[EndTime "13:07:55 PDT"]
[Termination "Game drawn - insufficient material"]

1. Nf3 {[%clk 0:03:00.1]} 1... d5 {[%clk 0:02:59.1]} 2. e3 {[%clk 0:02:45.6]}
2... Nf6 {[%clk 0:02:48.7]} 3. d4 {[%clk 0:01:35.3]} 3... c5 {[%clk 0:02:41.4]}
4. Bd3 {[%clk 0:01:36.2]} 4... Nc6 {[%clk 0:02:40.2]} 5. O-O {[%clk 0:01:35.8]}
5... cxd4 {[%clk 0:02:35.5]} 6. exd4 {[%clk 0:01:35.7]} 6... Bg4 {[%clk
0:02:35.7]} 7. c3 {[%clk 0:01:35.6]} 7... e6 {[%clk 0:02:35.2]} 8. h3 {[%clk
0:01:35.9]} 8... Bh5 {[%clk 0:02:35.3]} 9. Re1 {[%clk 0:01:36.2]} 9... Bd6
{[%clk 0:02:34.7]} 10. Bg5 {[%clk 0:01:36.2]} 10... O-O {[%clk 0:02:33.7]} 11.
Nbd2 {[%clk 0:01:36.1]} 11... h6 {[%clk 0:02:31.6]} 12. Bh4 {[%clk 0:01:33.4]}
12... g5 {[%clk 0:02:10.2]} 13. Bg3 {[%clk 0:01:31.5]} 13... Bxg3 {[%clk
0:02:10]} 14. fxg3 {[%clk 0:01:29.8]} 14... g4 {[%clk 0:02:10.2]} 15. hxg4
{[%clk 0:01:27]} 15... Nxg4 {[%clk 0:02:02.7]} 16. Qb3 {[%clk 0:01:13.9]} 16...
Qc7 {[%clk 0:01:58.6]} 17. Nf1 {[%clk 0:01:12.7]} 17... Rfe8 {[%clk 0:01:32.5]}
18. Rad1 {[%clk 0:01:09.6]} 18... Rad8 {[%clk 0:01:26]} 19. Bb1 {[%clk
0:00:43.9]} 19... e5 {[%clk 0:01:14.1]} 20. dxe5 {[%clk 0:00:43.4]} 20... Ngxe5
{[%clk 0:01:13.6]} 21. Qc2 {[%clk 0:00:42.3]} 21... Bg6 {[%clk 0:01:11.7]} 22.
Qb3 {[%clk 0:00:32.5]} 22... Nxf3+ {[%clk 0:01:09.1]} 23. gxf3 {[%clk
0:00:31.9]} 23... Rxe1 {[%clk 0:01:06]} 24. Rxe1 {[%clk 0:00:32.8]} 24... Bxb1
{[%clk 0:01:03.5]} 25. Rxb1 {[%clk 0:00:33.7]} 25... d4 {[%clk 0:01:03.9]} 26.
Rd1 {[%clk 0:00:25.8]} 26... d3 {[%clk 0:01:00]} 27. Qc4 {[%clk 0:00:22]} 27...
Qb6+ {[%clk 0:00:47.9]} 28. Kg2 {[%clk 0:00:21.5]} 28... Ne5 {[%clk 0:00:47.4]}
29. Qe4 {[%clk 0:00:19.4]} 29... Qxb2+ {[%clk 0:00:44]} 30. Rd2 {[%clk
0:00:19.4]} 30... Qxc3 {[%clk 0:00:44.5]} 31. f4 {[%clk 0:00:16.7]} 31... Qc6
{[%clk 0:00:40.5]} 32. Qxc6 {[%clk 0:00:13.4]} 32... Nxc6 {[%clk 0:00:41.4]} 33.
Kf3 {[%clk 0:00:13.9]} 33... Nd4+ {[%clk 0:00:36.9]} 34. Ke4 {[%clk 0:00:12.6]}
34... Ne6 {[%clk 0:00:34.9]} 35. Ne3 {[%clk 0:00:11]} 35... a5 {[%clk
0:00:33.9]} 36. Nf5 {[%clk 0:00:10]} 36... Kh7 {[%clk 0:00:30.9]} 37. Ke3 {[%clk
0:00:10.1]} 37... Nc5 {[%clk 0:00:30.2]} 38. g4 {[%clk 0:00:08.4]} 38... b5
{[%clk 0:00:29.6]} 39. Rh2 {[%clk 0:00:08.4]} 39... d2 {[%clk 0:00:24.5]} 40.
Rxd2 {[%clk 0:00:08.9]} 40... Rxd2 {[%clk 0:00:24.4]} 41. Kxd2 {[%clk
0:00:09.8]} 41... b4 {[%clk 0:00:22.6]} 42. Ne3 {[%clk 0:00:09.8]} 42... Kg6
{[%clk 0:00:21.3]} 43. Nd5 {[%clk 0:00:08.8]} 43... h5 {[%clk 0:00:18.9]} 44.
f5+ {[%clk 0:00:07.2]} 44... Kg5 {[%clk 0:00:18.5]} 45. gxh5 {[%clk 0:00:07.1]}
45... Kxh5 {[%clk 0:00:19.4]} 46. Ke3 {[%clk 0:00:07.3]} 46... Kg5 {[%clk
0:00:19.4]} 47. Kd4 {[%clk 0:00:06.4]} 47... Nd7 {[%clk 0:00:18]} 48. Kc4 {[%clk
0:00:04.5]} 48... Kxf5 {[%clk 0:00:18]} 49. Kb5 {[%clk 0:00:04.7]} 49... Ke4
{[%clk 0:00:18.3]} 50. Ne7 {[%clk 0:00:03.8]} 50... f5 {[%clk 0:00:18.3]} 51.
Nxf5 {[%clk 0:00:03.7]} 51... Kxf5 {[%clk 0:00:18]} 52. Kxa5 {[%clk 0:00:04.6]}
52... Ke5 {[%clk 0:00:18.3]} 53. Kxb4 {[%clk 0:00:04.4]} 53... Kd6 {[%clk
0:00:19.2]} 54. Kb5 {[%clk 0:00:05.1]} 54... Kc7 {[%clk 0:00:20.1]} 55. Ka6
{[%clk 0:00:05.4]} 55... Kb8 {[%clk 0:00:21]} 56. a4 {[%clk 0:00:06.1]} 56...
Nc5+ {[%clk 0:00:21.2]} 57. Kb5 {[%clk 0:00:06]} 57... Nxa4 {[%clk 0:00:22.1]}
1/2-1/2

[Event "*** Titled Tuesday Blitz"]
[Site "Chess.com"]
[Date "2020.04.07"]
[Round "1"]
[White "mathapples"]
[Black "bangchess21"]
[Result "0-1"]
[WhiteElo "2314"]
[BlackElo "2645"]
[TimeControl "180+1"]
[EndTime "13:07:59 PDT"]
[Termination "bangchess21 won by checkmate"]

1. d4 {[%clk 0:03:00.9]} 1... Nf6 {[%clk 0:02:59.4]} 2. c4 {[%clk 0:03:00.9]}
2... c5 {[%clk 0:02:59.1]} 3. d5 {[%clk 0:03:00.9]} 3... b5 {[%clk 0:02:59.1]}
4. cxb5 {[%clk 0:03:01]} 4... a6 {[%clk 0:02:58.8]} 5. b6 {[%clk 0:03:01.3]}
5... d6 {[%clk 0:02:23]} 6. Nc3 {[%clk 0:02:57.9]} 6... g6 {[%clk 0:02:21.8]} 7.
e4 {[%clk 0:02:56]} 7... Bg7 {[%clk 0:02:20.2]} 8. a4 {[%clk 0:02:55.5]} 8...
Qxb6 {[%clk 0:02:18.8]} 9. Nf3 {[%clk 0:02:55.3]} 9... O-O {[%clk 0:02:11.8]}
10. Nd2 {[%clk 0:02:52.4]} 10... Nbd7 {[%clk 0:01:43.3]} 11. Nc4 {[%clk
0:02:50.5]} 11... Qc7 {[%clk 0:01:41.4]} 12. Be2 {[%clk 0:02:49.9]} 12... Nb6
{[%clk 0:01:33.4]} 13. a5 {[%clk 0:02:49.1]} 13... Nxc4 {[%clk 0:01:32.8]} 14.
Bxc4 {[%clk 0:02:48.9]} 14... Rb8 {[%clk 0:01:30.1]} 15. O-O {[%clk 0:02:46.9]}
15... Rb4 {[%clk 0:01:30.6]} 16. Qe2 {[%clk 0:02:44.9]} 16... e6 {[%clk
0:01:19.7]} 17. Bxa6 {[%clk 0:02:37.4]} 17... Bxa6 {[%clk 0:01:17.7]} 18. Qxa6
{[%clk 0:02:36.7]} 18... Nxe4 {[%clk 0:01:07.3]} 19. Nxe4 {[%clk 0:02:34.9]}
19... Rxe4 {[%clk 0:01:08.2]} 20. dxe6 {[%clk 0:02:32.5]} 20... fxe6 {[%clk
0:01:07.8]} 21. Qd3 {[%clk 0:02:26.1]} 21... d5 {[%clk 0:01:04.7]} 22. a6 {[%clk
0:02:09.1]} 22... Ra8 {[%clk 0:01:02.8]} 23. Ra2 {[%clk 0:01:51.4]} 23... Qb6
{[%clk 0:00:55.1]} 24. Bd2 {[%clk 0:01:32.2]} 24... c4 {[%clk 0:00:52.9]} 25.
Qa3 {[%clk 0:01:30.8]} 25... Re2 {[%clk 0:00:51.1]} 26. Be3 {[%clk 0:01:30.4]}
26... d4 {[%clk 0:00:50.8]} 27. Bg5 {[%clk 0:00:58.5]} 27... Re5 {[%clk
0:00:45.6]} 28. Bf4 {[%clk 0:00:54.6]} 28... Rb5 {[%clk 0:00:42.8]} 29. a7
{[%clk 0:00:52.5]} 29... e5 {[%clk 0:00:38.7]} 30. Bg5 {[%clk 0:00:40.6]} 30...
h6 {[%clk 0:00:37.8]} 31. Be7 {[%clk 0:00:37.2]} 31... Rb3 {[%clk 0:00:35.4]}
32. Qa4 {[%clk 0:00:36.7]} 32... Qc7 {[%clk 0:00:35.6]} 33. Bd6 {[%clk
0:00:35.9]} 33... Qc8 {[%clk 0:00:29.6]} 34. Rc1 {[%clk 0:00:35.9]} 34... Rd3
{[%clk 0:00:27.7]} 35. h4 {[%clk 0:00:34.2]} 35... Qe6 {[%clk 0:00:27.2]} 36.
Qxc4 {[%clk 0:00:33.4]} 36... Rd1+ {[%clk 0:00:27]} 37. Kh2 {[%clk 0:00:33.3]}
37... Kf7 {[%clk 0:00:26.7]} 38. Qxe6+ {[%clk 0:00:32.3]} 38... Kxe6 {[%clk
0:00:27.6]} 39. Rxd1 {[%clk 0:00:32.8]} 39... Kxd6 {[%clk 0:00:28.5]} 40. Rc1
{[%clk 0:00:32.9]} 40... e4 {[%clk 0:00:28.7]} 41. Rc4 {[%clk 0:00:32]} 41...
Kd5 {[%clk 0:00:28.3]} 42. Rb4 {[%clk 0:00:31.6]} 42... d3 {[%clk 0:00:28.1]}
43. b3 {[%clk 0:00:28.5]} 43... Bc3 {[%clk 0:00:26.9]} 44. Rb5+ {[%clk
0:00:27.4]} 44... Kc6 {[%clk 0:00:26]} 45. Rb8 {[%clk 0:00:16.8]} 45... Be5+
{[%clk 0:00:25.2]} 46. Kg1 {[%clk 0:00:17.3]} 46... Bxb8 {[%clk 0:00:25.8]} 47.
axb8=Q {[%clk 0:00:17.4]} 47... Rxb8 {[%clk 0:00:26.7]} 48. Kf1 {[%clk
0:00:16.2]} 48... Rxb3 {[%clk 0:00:25.7]} 49. Rd2 {[%clk 0:00:15.8]} 49... Rb1+
{[%clk 0:00:25.1]} 50. Rd1 {[%clk 0:00:15.8]} 50... Rxd1# {[%clk 0:00:25.5]} 0-1

[Event "*** Titled Tuesday Blitz"]
[Site "Chess.com"]
[Date "2020.04.07"]
[Round "1"]
[White "Fandorine"]
[Black "ftorodent"]
[Result "1-0"]
[WhiteElo "2967"]
[BlackElo "2476"]
[TimeControl "180+1"]
[EndTime "13:08:01 PDT"]
[Termination "Fandorine won on time"]

1. e4 {[%clk 0:02:55.7]} 1... e6 {[%clk 0:02:59.1]} 2. d4 {[%clk 0:02:54.8]}
2... d5 {[%clk 0:02:59]} 3. Bd3 {[%clk 0:02:46.9]} 3... c5 {[%clk 0:02:52.5]} 4.
exd5 {[%clk 0:02:46.6]} 4... exd5 {[%clk 0:02:52.2]} 5. Nf3 {[%clk 0:02:46.6]}
5... Nc6 {[%clk 0:02:48.9]} 6. O-O {[%clk 0:02:41.5]} 6... c4 {[%clk 0:02:47.4]}
7. Be2 {[%clk 0:02:41.3]} 7... Nf6 {[%clk 0:02:46]} 8. b3 {[%clk 0:02:41.3]}
8... cxb3 {[%clk 0:02:45.9]} 9. axb3 {[%clk 0:02:42.2]} 9... Bd6 {[%clk
0:02:46]} 10. c4 {[%clk 0:02:42.6]} 10... O-O {[%clk 0:02:45.9]} 11. Nc3 {[%clk
0:02:43]} 11... Bg4 {[%clk 0:02:29.8]} 12. Be3 {[%clk 0:02:40.7]} 12... Re8
{[%clk 0:02:26.8]} 13. h3 {[%clk 0:02:38.7]} 13... Bh5 {[%clk 0:02:26.2]} 14.
Re1 {[%clk 0:02:08.7]} 14... Bb4 {[%clk 0:02:21.6]} 15. Rc1 {[%clk 0:01:53.4]}
15... dxc4 {[%clk 0:01:54.7]} 16. bxc4 {[%clk 0:01:26.6]} 16... Ne4 {[%clk
0:01:48.3]} 17. Nxe4 {[%clk 0:01:26.8]} 17... Bxe1 {[%clk 0:01:44.3]} 18. Neg5
{[%clk 0:01:14.7]} 18... Ba5 {[%clk 0:01:17]} 19. d5 {[%clk 0:01:14.5]} 19...
Bxf3 {[%clk 0:01:00.9]} 20. Nxf3 {[%clk 0:01:02.8]} 20... Ne5 {[%clk 0:01:00.7]}
21. c5 {[%clk 0:00:56.8]} 21... Nxf3+ {[%clk 0:00:40.1]} 22. Bxf3 {[%clk
0:00:57.7]} 22... Qd7 {[%clk 0:00:35]} 23. d6 {[%clk 0:00:50.2]} 23... Rab8
{[%clk 0:00:23.3]} 24. c6 {[%clk 0:00:43.1]} 24... bxc6 {[%clk 0:00:18.3]} 25.
Bxc6 {[%clk 0:00:44]} 25... Qe6 {[%clk 0:00:18.2]} 26. Bxe8 {[%clk 0:00:37.9]}
26... Rxe8 {[%clk 0:00:17.8]} 27. Bxa7 {[%clk 0:00:34.5]} 27... Bb4 {[%clk
0:00:17.7]} 28. Bc5 {[%clk 0:00:16.6]} 28... Bxc5 {[%clk 0:00:15.4]} 29. Rxc5
{[%clk 0:00:17.5]} 29... g6 {[%clk 0:00:13.5]} 30. Rd5 {[%clk 0:00:17.1]} 30...
Qd7 {[%clk 0:00:12.7]} 31. Kh2 {[%clk 0:00:16.4]} 31... Re6 {[%clk 0:00:12.6]}
32. Qd4 {[%clk 0:00:16.3]} 32... h5 {[%clk 0:00:12.6]} 33. h4 {[%clk 0:00:16.3]}
33... Re8 {[%clk 0:00:09.8]} 34. g3 {[%clk 0:00:16.5]} 34... Re6 {[%clk
0:00:09.7]} 35. Qc5 {[%clk 0:00:16.3]} 35... Kg7 {[%clk 0:00:06]} 36. Qc3+
{[%clk 0:00:14.6]} 36... Kh7 {[%clk 0:00:05.9]} 37. Qd4 {[%clk 0:00:13.5]} 37...
Re8 {[%clk 0:00:05.4]} 38. Qf4 {[%clk 0:00:09]} 38... Re6 {[%clk 0:00:04.7]} 39.
Rd1 {[%clk 0:00:09.2]} 39... Kg7 {[%clk 0:00:04.1]} 40. Kg2 {[%clk 0:00:08.5]}
40... f6 {[%clk 0:00:02.8]} 41. Qd4 {[%clk 0:00:07.6]} 41... Kf7 {[%clk
0:00:02.6]} 42. Qd5 {[%clk 0:00:07]} 1-0

[Event "*** Titled Tuesday Blitz"]
[Site "Chess.com"]
[Date "2020.04.07"]
[Round "1"]
[White "NMZanette"]
[Black "AleksanderHnydiuk"]
[Result "0-1"]
[WhiteElo "2169"]
[BlackElo "2548"]
[TimeControl "180+1"]
[EndTime "13:08:01 PDT"]
[Termination "AleksanderHnydiuk won by resignation"]

1. e4 {[%clk 0:02:59.6]} 1... Nf6 {[%clk 0:02:58.5]} 2. e5 {[%clk 0:02:59.4]}
2... Nd5 {[%clk 0:02:58.8]} 3. d4 {[%clk 0:02:59.9]} 3... d6 {[%clk 0:02:59.2]}
4. c4 {[%clk 0:02:59.8]} 4... Nb6 {[%clk 0:02:59.2]} 5. exd6 {[%clk 0:03:00.2]}
5... exd6 {[%clk 0:02:58.8]} 6. Nc3 {[%clk 0:02:59.1]} 6... Be7 {[%clk 0:02:59]}
7. Be3 {[%clk 0:02:58.7]} 7... Bf5 {[%clk 0:02:56.3]} 8. Qd2 {[%clk 0:02:58.1]}
8... O-O {[%clk 0:02:54.4]} 9. h3 {[%clk 0:02:55.5]} 9... Nc6 {[%clk 0:02:52.1]}
10. Nf3 {[%clk 0:02:55.4]} 10... Bf6 {[%clk 0:02:45.1]} 11. Be2 {[%clk
0:02:51.2]} 11... Re8 {[%clk 0:02:43.6]} 12. O-O {[%clk 0:02:50.8]} 12... d5
{[%clk 0:02:43.7]} 13. b3 {[%clk 0:02:49.1]} 13... dxc4 {[%clk 0:02:37.2]} 14.
Bxc4 {[%clk 0:02:43.1]} 14... Nxc4 {[%clk 0:02:24.7]} 15. bxc4 {[%clk
0:02:42.6]} 15... Na5 {[%clk 0:02:24.8]} 16. Qe2 {[%clk 0:02:36.4]} 16... c5
{[%clk 0:02:22.7]} 17. Rad1 {[%clk 0:02:18]} 17... cxd4 {[%clk 0:02:06.3]} 18.
Nxd4 {[%clk 0:02:16.4]} 18... Bxd4 {[%clk 0:02:05.8]} 19. Rxd4 {[%clk
0:02:15.6]} 19... Qxd4 {[%clk 0:02:05.2]} 20. Bxd4 {[%clk 0:02:14.7]} 20... Rxe2
{[%clk 0:02:05.2]} 21. Nxe2 {[%clk 0:02:14.8]} 21... Bd3 {[%clk 0:01:58.8]} 22.
Re1 {[%clk 0:02:14.4]} 22... Re8 {[%clk 0:01:59.1]} 23. Bc3 {[%clk 0:02:07.7]}
23... Nxc4 {[%clk 0:01:51.4]} 24. Nc1 {[%clk 0:02:07.7]} 24... Rxe1+ {[%clk
0:01:50.2]} 25. Bxe1 {[%clk 0:02:08.2]} 25... Bb1 {[%clk 0:01:45.3]} 26. a4
{[%clk 0:02:05.1]} 26... Kf8 {[%clk 0:01:36.9]} 27. a5 {[%clk 0:02:02.3]} 27...
Ke7 {[%clk 0:01:35.3]} 28. Nb3 {[%clk 0:02:02.3]} 28... Kd6 {[%clk 0:01:32.1]}
29. Bc3 {[%clk 0:02:00.6]} 29... f6 {[%clk 0:01:29.9]} 30. Nd4 {[%clk 0:01:59]}
30... Kd5 {[%clk 0:01:11.9]} 31. Nb5 {[%clk 0:01:56.7]} 31... a6 {[%clk
0:01:09.7]} 32. Nc7+ {[%clk 0:01:55.3]} 32... Kc6 {[%clk 0:01:03.6]} 33. Ne6
{[%clk 0:01:53.7]} 33... g6 {[%clk 0:00:51.8]} 34. Nd8+ {[%clk 0:01:41.7]} 34...
Kc7 {[%clk 0:00:47.7]} 35. Ne6+ {[%clk 0:01:42.1]} 35... Kc8 {[%clk 0:00:44]}
36. f4 {[%clk 0:01:34.6]} 36... h5 {[%clk 0:00:41]} 37. Kf2 {[%clk 0:01:34.1]}
37... Bf5 {[%clk 0:00:40]} 38. Nc5 {[%clk 0:01:28.1]} 38... Kc7 {[%clk
0:00:35.5]} 39. Kf3 {[%clk 0:01:22.2]} 39... Kc6 {[%clk 0:00:35.6]} 40. Ne4
{[%clk 0:01:18]} 40... Bxe4+ {[%clk 0:00:31.8]} 41. Kxe4 {[%clk 0:01:18.3]}
41... f5+ {[%clk 0:00:32]} 42. Kd4 {[%clk 0:01:16.4]} 42... Kb5 {[%clk
0:00:32.3]} 43. Kd5 {[%clk 0:01:14.5]} 43... Nxa5 {[%clk 0:00:31.5]} 44. Ke6
{[%clk 0:01:12.2]} 44... Nc4 {[%clk 0:00:29.6]} 45. Kf7 {[%clk 0:01:10.1]} 45...
Ne3 {[%clk 0:00:28.9]} 46. Kxg6 {[%clk 0:01:09.6]} 46... Nxg2 {[%clk 0:00:29.1]}
47. Kxf5 {[%clk 0:01:10]} 47... Kc4 {[%clk 0:00:29.1]} 48. Be5 {[%clk
0:01:04.7]} 48... b5 {[%clk 0:00:27.5]} 49. Ke6 {[%clk 0:01:04.9]} 49... Nxf4+
{[%clk 0:00:22.2]} 50. Bxf4 {[%clk 0:01:04.7]} 50... b4 {[%clk 0:00:22.5]} 51.
Kf5 {[%clk 0:00:51.6]} 51... a5 {[%clk 0:00:21.8]} 52. Kg5 {[%clk 0:00:49.9]}
52... a4 {[%clk 0:00:21.9]} 53. Kxh5 {[%clk 0:00:49.7]} 53... a3 {[%clk
0:00:22.1]} 54. Be5 {[%clk 0:00:48.3]} 54... b3 {[%clk 0:00:21.8]} 55. Kg6
{[%clk 0:00:47.8]} 55... b2 {[%clk 0:00:21.9]} 0-1

[Event "*** Titled Tuesday Blitz"]
[Site "Chess.com"]
[Date "2020.04.07"]
[Round "1"]
[White "Raja3401"]
[Black "plumalka"]
[Result "1-0"]
[WhiteElo "2733"]
[BlackElo "2390"]
[TimeControl "180+1"]
[EndTime "13:08:02 PDT"]
[Termination "Raja3401 won by checkmate"]

1. e4 {[%clk 0:03:00.9]} 1... c5 {[%clk 0:02:57.8]} 2. Nf3 {[%clk 0:03:00.9]}
2... d6 {[%clk 0:02:57.5]} 3. d4 {[%clk 0:03:01.1]} 3... cxd4 {[%clk 0:02:58.4]}
4. Nxd4 {[%clk 0:03:02]} 4... Nf6 {[%clk 0:02:58.8]} 5. Nc3 {[%clk 0:03:02.6]}
5... Bd7 {[%clk 0:02:59.1]} 6. Bg5 {[%clk 0:02:59.9]} 6... e6 {[%clk 0:02:58.4]}
7. f4 {[%clk 0:02:59.9]} 7... Nc6 {[%clk 0:02:55.6]} 8. Ndb5 {[%clk 0:02:47.3]}
8... Qb8 {[%clk 0:02:50.7]} 9. Qd2 {[%clk 0:02:40]} 9... a6 {[%clk 0:02:48.3]}
10. Nd4 {[%clk 0:02:40.6]} 10... Qc7 {[%clk 0:02:40.9]} 11. O-O-O {[%clk
0:02:40.2]} 11... O-O-O {[%clk 0:02:39.3]} 12. Bxf6 {[%clk 0:02:28.8]} 12...
gxf6 {[%clk 0:02:38.6]} 13. Kb1 {[%clk 0:02:29.7]} 13... h5 {[%clk 0:02:38.2]}
14. f5 {[%clk 0:02:23]} 14... Bh6 {[%clk 0:02:32.1]} 15. Qf2 {[%clk 0:02:22.9]}
15... Ne5 {[%clk 0:02:21.4]} 16. Be2 {[%clk 0:02:17.2]} 16... h4 {[%clk
0:02:15.4]} 17. fxe6 {[%clk 0:02:13]} 17... fxe6 {[%clk 0:02:13.4]} 18. Qxf6
{[%clk 0:02:04.7]} 18... Rdf8 {[%clk 0:02:10.3]} 19. Nxe6 {[%clk 0:02:03.9]}
19... Rxf6 {[%clk 0:02:06.6]} 20. Nxc7 {[%clk 0:02:04.1]} 20... Rf2 {[%clk
0:02:00.2]} 21. N7d5 {[%clk 0:02:03.2]} 21... Rxg2 {[%clk 0:01:57.6]} 22. Rdg1
{[%clk 0:01:52.1]} 22... h3 {[%clk 0:01:52.2]} 23. Bf1 {[%clk 0:01:46.9]} 23...
Rxg1 {[%clk 0:01:41.9]} 24. Rxg1 {[%clk 0:01:47.8]} 24... Rf8 {[%clk 0:01:38.8]}
25. Nb6+ {[%clk 0:01:43]} 25... Kd8 {[%clk 0:01:34.2]} 26. Nxd7 {[%clk
0:01:43.9]} 26... Kxd7 {[%clk 0:01:32.7]} 27. Bxh3+ {[%clk 0:01:43.5]} 27... Kc6
{[%clk 0:01:30.2]} 28. Bf5 {[%clk 0:01:43]} 28... Be3 {[%clk 0:01:24]} 29. Rg7
{[%clk 0:01:38.9]} 29... Rh8 {[%clk 0:01:20]} 30. Nd5 {[%clk 0:01:38.7]} 30...
Bc5 {[%clk 0:00:28.3]} 31. Rc7+ {[%clk 0:01:26.6]} 31... Kb5 {[%clk 0:00:28.2]}
32. Rxb7+ {[%clk 0:01:26.9]} 32... Kc4 {[%clk 0:00:27.6]} 33. a4 {[%clk
0:00:41]} 33... Rxh2 {[%clk 0:00:25.5]} 34. a5 {[%clk 0:00:36.4]} 34... Nc6
{[%clk 0:00:23.1]} 35. Rc7 {[%clk 0:00:23.8]} 35... Nb4 {[%clk 0:00:17.6]} 36.
Nxb4 {[%clk 0:00:20.7]} 36... Kxb4 {[%clk 0:00:17.9]} 37. Rb7+ {[%clk
0:00:18.1]} 37... Kxa5 {[%clk 0:00:18.1]} 38. c3 {[%clk 0:00:17.6]} 38... Re2
{[%clk 0:00:16.5]} 39. Ka2 {[%clk 0:00:16.4]} 39... Ka4 {[%clk 0:00:16.2]} 40.
Bd7+ {[%clk 0:00:15.9]} 40... Ka5 {[%clk 0:00:16.2]} 41. Bc6 {[%clk 0:00:16.5]}
41... Rd2 {[%clk 0:00:15.8]} 42. Kb3 {[%clk 0:00:16.6]} 42... Rg2 {[%clk
0:00:12.2]} 43. Kc4 {[%clk 0:00:16.5]} 43... Rxb2 {[%clk 0:00:07.6]} 44. Rxb2
{[%clk 0:00:15.5]} 44... d5+ {[%clk 0:00:07.5]} 45. Kxc5 {[%clk 0:00:14.9]}
45... d4 {[%clk 0:00:07]} 46. Ra2# {[%clk 0:00:15.8]} 1-0